Cogmind - Beta 13 @@@ ROGUE MODE // 2024.05.25 @ 19:02:06 Player: Tun Result: Destroyed by S-10 Pest with Light Assault Rifle Performance ------------- Evolutions (1) 500 Regions Visited (3) 600 Robots Destroyed (23) 115 Value Destroyed (570) 570 Prototype IDs (3) 60 Alien Tech Used (0) 0 Bonus (0) 0 TOTAL SCORE: 1845 Bonus ------- None Cogmind --------- Core Integrity 0/400 Matter 300/300 Energy 99/100 System Corruption 6% Temperature Cool (0) Movement Core (150) Ox2 Location -9/Materials Parts ------- > --- POWER (2) -------- (None) > --- PROPULSION (3) --- (None) > --- UTILITY (2) ------ Improved Utility Shielding > --- WEAPON (2) ------- Improved Assault Rifle Ripper > --- INVENTORY (5) ---- Assault Rifle Heavy Assault Rifle Plasma Cutter Maul Maul Peak State ------------ > --- POWER ------------ Light Ion Engine Light Ion Engine > --- PROPULSION ------- Aluminum Leg Aluminum Leg Aluminum Leg > --- UTILITY ---------- Experimental Sensor Array Improved Utility Shielding > --- WEAPON ----------- EM Shotgun Ripper > --- INVENTORY -------- Assault Rifle Assault Rifle Light Assault Rifle Light Cannon [Rating: 23] Favorites ----------- Power Light Ion Engine Engine Light Ion Engine Propulsion Aluminum Leg Treads Light Treads Leg Aluminum Leg Utility Experimental Sensor Array Device Experimental Sensor Array Processor Signal Interpreter Protection Improved Utility Shielding Weapon Ripper Energy Gun EM Shotgun Ballistic Gun Assault Rifle Ballistic Cannon Light Cannon Launcher Grenade Launcher Impact Weapon Maul Slashing Weapon Ripper Build | -11 -10 -10 -9 ------- Run | Yrd Mat Min Mat Slots Evolved 2 | . . . 2 Power 1 | . . . 1 Propulsion 1 | . . . 1 Utility . | . . . . Weapon . | . . . . Parts Attached 36 | 5 3 6 22 Power 7 | 1 . 1 5 Engine 7 | 1 . 1 5 Core . | . . . . Reactor . | . . . . Propulsion 8 | 2 . . 6 Treads 4 | . . . 4 Leg 4 | 2 . . 2 Wheel . | . . . . Hover . | . . . . Flight . | . . . . Utility 3 | . 1 1 1 Device 1 | . . 1 . Storage . | . . . . Processor 1 | . 1 . . Hackware . | . . . . Protection 1 | . . . 1 Artifact . | . . . . Weapon 18 | 2 2 4 10 Energy Gun 2 | . . . 2 Energy Cannon . | . . . . Ballistic Gun 6 | 2 . 1 3 Ballistic Cannon 1 | . 1 . . Launcher 1 | . 1 . . Special Weapon . | . . . . Impact Weapon 3 | . . . 3 Slashing Weapon 5 | . . 3 2 Piercing Weapon . | . . . . Special Melee Weapon . | . . . . Unidentified Prototypes 3 | . . 1 2 Corrupted Parts 1 | . . . 1 System Corruption 6 | . . . 6 Parts Lost 12 | . . 1 11 Power 4 | . . . 4 Propulsion 4 | . . . 4 Utility 1 | . . . 1 Weapon 3 | . . 1 2 Highest Loss Streak 4 | . . 1 4 To Critical Strikes . | . . . . Average Slot Usage (%) 78 | . 74 89 76 Engine 16 | . 14 14 17 Treads 6 | . . . 10 Leg 14 | . 28 28 7 Device 8 | . . 7 10 Processor 3 | . 3 14 . Protection 7 | . . . 10 Ballistic Gun 6 | . 8 6 5 Ballistic Cannon 1 | . 9 1 . Launcher 2 | . 9 5 . Impact Weapon 2 | . . . 3 Slashing Weapon 8 | . . 12 8 Naked Turns . | . . . . Heaviest Build 19 | 7 9 9 19 Greatest Support 40 | 20 20 20 40 Greatest Overweight (x) 5 | . . . 5 Average Overweight (x) . | . . . . Largest Inventory Capacity 5 | 5 5 5 5 Average Capacity 5 | 5 5 5 5 Most Carried 5 | . 3 5 5 Average Carried 3 | . 1 3 4 Final Capacity 5 | 5 5 5 5 Final Carried 5 | . 2 5 5 Class Distribution -------------------- 78% | Mutant 21% | Scavenger-Mutant Dominant Class ---------------- Mutant | -10/Materials Mutant | -10/Mines Mutant | -9/Materials Resources | -11 -10 -10 -9 ----------- Run | Yrd Mat Min Mat Matter Collected 593 | 237 2 93 261 Remotely . | . . . . Salvage Created 762 | . . 55 707 Parts 55 | . 3 9 43 Haulers Intercepted 1 | . . . 1 Recyclers Shooed . | . . . . Parts Field Recycled . | . . . . Retrieved Matter . | . . . . Parts Self-Destructed . | . . . . Prevented . | . . . . Kills | -11 -10 -10 -9 ------- Run | Yrd Mat Min Mat Combat Hostiles Destroyed 15 | . . 3 12 Melee 12 | . . 1 11 AOE 2 | . . 2 . Classes Destroyed 9 | . 1 3 5 Builder 2 | . . 1 1 Tunneler 1 | . . 1 . Hauler 1 | . . . 1 Recycler 1 | . . . 1 Watcher 3 | . 1 . 2 Swarmer 3 | . . 3 . Grunt 8 | . . . 8 Duelist 1 | . . . 1 Sentry 3 | . . . 3 Best Kill Streak 4 | . 1 4 4 Combat Bots Only 3 | . . 3 3 Max Kills in Single Turn 3 | . 1 3 1 Gunslinging . | . . . . Exploded 2 | . . 2 . Melee 1 | . . 1 1 Uniques/NPCs Destroyed . | . . . . Combat | -11 -10 -10 -9 -------- Run | Yrd Mat Min Mat Hostile Shots Fired 170 | 5 . 17 148 Missed 44 | . . 1 43 Damage Taken 1655 | 52 16 166 1421 Core 461 | 20 . 33 408 Absorbed by Shields . | . . . . Redirected to Shielding 35 | . . . 35 Core Remaining (%) 85 | 92 . 78 . Volleys Fired 10 | . 4 1 5 Largest 2 | . 2 1 1 Hottest 65 | . 65 30 45 Shots Fired 13 | . 7 1 5 Gun 5 | . . . 5 Cannon 4 | . 4 . . Launcher 4 | . 3 1 . Special . | . . . . Kinetic 8 | . 4 . 4 Thermal . | . . . . Explosive 4 | . 3 1 . Electromagnetic 1 | . . . 1 Robot Hit Streak 5 | . 1 . 5 Robot Miss Streak 4 | . 2 3 4 Penetration Max . | . . . . Secondary Targets . | . . . . Shots Hit Robots 47 | . 2 3 42 Core Hits 24 | 3 2 4 15 Critical Kills . | . . . . Critical Parts Destroyed 1 | . . . 1 Critical Strikes 4 | . . . 4 Smash 1 | . . . 1 Sever 3 | . . . 3 Melee Attacks 52 | . . 5 47 Impact 15 | . . . 15 Slashing 37 | . . 5 32 Piercing . | . . . . Sneak Attacks 6 | . . 2 4 Combat Hostiles . | . . . . Follow-up Attacks . | . . . . Damage Inflicted 2058 | 12 90 313 1643 Guns 77 | . . . 77 Cannons 19 | . 19 . . Explosions 228 | . 71 157 . Melee 1722 | . . 156 1566 Ramming 12 | 12 . . . Kinetic 62 | . 19 . 43 Thermal . | . . . . Explosive 228 | . 71 157 . Electromagnetic 34 | . . . 34 Impact 578 | . . . 578 Slashing 1144 | . . 156 988 Piercing . | . . . . Highest Corruption 6 | . . . 6 Average Corruption 6 | . . . 6 Corruption Purged . | . . . . Corruption Blocked . | . . . . Effects 5 | . . . 5 Message Errors 1 | . . . 1 Matter Fused 2 | . . . 2 Data Loss (minor) 2 | . . . 2 Overload Shots . | . . . . Overflow Damage 258 | . . 83 175 Projectiles . | . . . . Explosions 1 | . . 1 . Melee 257 | . . 82 175 Knockbacks 3 | . . . 3 Impact 3 | . . . 3 Kinetic . | . . . . Secondary . | . . . . Self-Inflicted Damage 53 | . 16 37 . Shots 2 | . 1 1 . Rammed . | . . . . Targets Rammed 10 | 9 1 . . Kicked 10 | 9 1 . . Crushed . | . . . . Highest Temperature 8 | . 3 . 8 Average Temperature 2 | . 2 . 6 Received Heat Transfer 519 | 30 . . 489 Siege Activations . | . . . . Robots Corrupted . | . . . . Combat Hostiles . | . . . . Parts Fried . | . . . . Impact Corruptions 4 | . . . 4 Robots Melted . | . . . . Combat Hostiles . | . . . . Parts Melted . | . . . . Heat Transferred . | . . . . Parts Sabotaged . | . . . . Parts Stolen . | . . . . Parts Stripped . | . . . . Power Chain Reactions . | . . . . Alert | -11 -10 -10 -9 ------- Run | Yrd Mat Min Mat Peak Influence 218 | . 51 101 218 Initial 39 | . . 19 39 Average 69 | . 22 70 88 Maximum Alert Level 1 | . . . 1 Low Security (%) 96 | 100 100 100 93 Level 1 3 | . . . 6 Level 2 . | . . . . Level 3 . | . . . . Level 4 . | . . . . Level 5 . | . . . . High Security . | . . . . Max Security . | . . . . Squads Dispatched 3 | . . . 3 Investigation 2 | . . . 2 Extermination . | . . . . Reinforcement 1 | . . . 1 Assault . | . . . . Garrison . | . . . . Intercept . | . . . . Searches Triggered . | . . . . Construction Impeded . | . . . . Haulers Reinforced . | . . . . Active Scanning Responses . | . . . . Cargo Convoy Interrupts . | . . . . Stealth | -11 -10 -10 -9 --------- Run | Yrd Mat Min Mat Distress Signals 1 | . . . 1 Communications Jammed . | . . . . Distress Signals . | . . . . Times Spotted 32 | 1 2 6 23 Peak Tracking Total 6 | 1 1 3 6 Tactical Retreats . | . . . . Traps | -11 -10 -10 -9 ------- Run | Yrd Mat Min Mat Traps Triggered 2 | . . . 2 Indirectly . | . . . . Trap Hack Attempts . | . . . . Triggered . | . . . . Disarmed . | . . . . Reprogrammed . | . . . . Reused . | . . . . Traps Extracted . | . . . . Installed . | . . . . Triggered . | . . . . Machines | -11 -10 -10 -9 ---------- Run | Yrd Mat Min Mat Machines Disabled . | . . . . Max in Single Turn . | . . . . Machines Repaired . | . . . . Machines Dismantled . | . . . . Machines Sabotaged . | . . . . Overloaded Fab Kills . | . . . . Hacking | -11 -10 -10 -9 --------- Run | Yrd Mat Min Mat Machines Accessed 1 | . . . 1 Terminals . | . . . . Fabricators . | . . . . Repair Stations . | . . . . Recycling Units . | . . . . Scanalyzers 1 | . . . 1 Garrison Access . | . . . . Total Hacks 3 | . . . 3 Successful 2 | . . . 2 Failed 1 | . . . 1 Catastrophic . | . . . . Database Lockouts . | . . . . Manual . | . . . . Terminals . | . . . . Fabricators . | . . . . Repair Stations . | . . . . Recycling Units . | . . . . Scanalyzers 3 | . . . 3 Garrison Access . | . . . . Terminal Hacks . | . . . . Fabricator Hacks . | . . . . Repair Station Hacks . | . . . . Recycling Unit Hacks . | . . . . Scanalyzer 2 | . . . 2 Insert Component 1 | . . . 1 Analyze 1 | . . . 1 Garrison Access Hacks . | . . . . Unauthorized Hacks . | . . . . Terminals . | . . . . Fabricators . | . . . . Repair Stations . | . . . . Recycling Units . | . . . . Scanalyzers . | . . . . Garrison Access . | . . . . Data Cores Recovered . | . . . . Used . | . . . . Hacking Detections 1 | . . . 1 Full Trace Events . | . . . . Feedback Events . | . . . . Feedback Blocked . | . . . . Robot Schematics Acquired . | . . . . Robots Built . | . . . . Authchips . | . . . . Time . | . . . . Total Robot Build Rating . | . . . . Part Schematics Acquired 1 | . . . 1 Parts Built . | . . . . Authchips . | . . . . Time . | . . . . Total Part Build Rating . | . . . . Parts Repaired . | . . . . Time . | . . . . Parts Recycled . | . . . . Recycled Matter . | . . . . Retrieved Matter . | . . . . Retrieved Components . | . . . . Parts Scanalyzed 1 | . . . 1 Part Schematics Acquired 1 | . . . 1 Parts Damaged . | . . . . Bothacking | -11 -10 -10 -9 ------------ Run | Yrd Mat Min Mat Used RIF Installer . | . . . . Robots Hacked . | . . . . Non-combat . | . . . . Combat . | . . . . Robot Hacks Applied . | . . . . Relay Couplers Released . | . . . . Fabnet Peak Effective % . | . . . . Robots Rewired . | . . . . Allies Hacked . | . . . . Hacks Repelled . | . . . . Allies | -11 -10 -10 -9 -------- Run | Yrd Mat Min Mat Total Allies . | . . . . Largest Group . | . . . . Highest-Rated Group . | . . . . Highest-Rated Ally . | . . . . Total Orders . | . . . . Ally Attacks . | . . . . Total Damage . | . . . . Kills . | . . . . Allies Corrupted . | . . . . Allies Melted . | . . . . Intel | -11 -10 -10 -9 ------- Run | Yrd Mat Min Mat Robot Analysis Total . | . . . . Derelict Logs Recovered 2 | . . 2 . Drone Launches . | . . . . Drone Recoveries . | . . . . Exploration | -11 -10 -10 -9 ------------- Run | Yrd Mat Min Mat Turns Passed 1469 | 127 182 287 873 Spaces Moved 858 | 102 136 213 407 Core 67 | 18 . . 49 Treads 212 | . . . 212 Legs 579 | 84 136 213 146 Wheels . | . . . . Hover . | . . . . Flight . | . . . . Fastest Speed 50 | 50 120 120 120 Average Speed 135 | 107 120 120 156 Slowest Speed 300 | 120 120 120 300 Overloaded Moves . | . . . . Propulsion Burnouts . | . . . . Robots Hopped . | . . . . Cave-ins Triggered . | . . . . Exploration Rate (%) 32 | 6 31 55 38 Regions Visited 3 Branch Regions 1 Pre-discovered Areas 1 | . . 1 . Known Exits Taken 2 | . 1 1 . Unknown Exits Taken 1 | 1 . . . Scrap Searched . | . . . . Spaces Dug . | . . . . Terrain Destroyed 39 | . 27 12 . Melee . | . . . . Projectile . | . . . . AOE 39 | . 27 12 . Terrain Rammed . | . . . . Walls Destroyed . | . . . . Machines Disabled . | . . . . Actions | -11 -10 -10 -9 --------- Run | Yrd Mat Min Mat Total 1065 | 115 147 235 568 Wait 50 | . . 6 44 Move 856 | 102 135 212 407 Hop . | . . . . Pick Up 9 | . 1 . 8 Fast Attach 37 | 5 3 6 23 Attach . | . . . . Detach 17 | . 2 3 12 Swap . | . . . . Drop 25 | . 1 2 22 Fire 10 | . 4 1 5 Melee 52 | . . 5 47 Ram . | . . . . Kick 9 | 8 1 . . Crush . | . . . . Escape Stasis . | . . . . Rewire . | . . . . Trap . | . . . . Miscellaneous . | . . . . Route ------- -11/Scrapyard -10/Materials -10/Mines -9/Materials (discovered 2 exits: Mat x2) History --------- Turn | Location | Event 2 | -11/Scrapyard | Met Revision 17 115 | -11/Scrapyard | Discovered new exit (range 8) 128 | -11/Scrapyard | Entered Materials 277 | -10/Materials | Discovered new exit (range 8) 303 | -10/Materials | Build established: Mutant 308 | -10/Materials | Identified exit to Mines 310 | -10/Materials | Entered Mines 311 | -10/Mines | Learned location of Storage (-9) 324 | -10/Mines | Learned Materials terminal intel 327 | -10/Mines | A weapon hastily lodged in a ceiling crevice suddenly fell to the ground 361 | -10/Mines | Learned location of 2 exits from Materials 446 | -10/Mines | Found a damaged Exp. Sensor Array with a note attached 448 | -10/Mines | Found Prototype Device 448 | -10/Mines | Identified Exp. Sensor Array 594 | -10/Mines | Discovered new exit (range 3) 596 | -10/Mines | Identified exit to Materials 597 | -10/Mines | Entered Materials 597 | -9/Materials | Evolved 2 slots: Power x1, Propulsion x1 598 | -9/Materials | Identified exit to Materials 599 | -9/Materials | Loaded intel: 11 terminal locations 1086 | -9/Materials | Build established: Scavenger-Mutant 1156 | -9/Materials | Core integrity fell below 50% 1184 | -9/Materials | Lost 4 parts (2p1n1w) 1374 | -9/Materials | Lost 3 parts (1p2n) 1410 | -9/Materials | Build established: Mutant 1458 | -9/Materials | Core integrity fell below 20% 1470 | -9/Materials | Destroyed by S-10 Pest with Light Assault Rifle Last Messages --------------- 01426_ T-07 Excavator is excavating. 01445_ H SC%/MQO6X2PY%N5,6 Y 01451_ Triggered Alarm Trap. 01451_ An alarm sounds. 01451_ ALERT: Alarm triggered, dispatching investigation squad. 01453_ Triggered Alarm Trap. 01453_ An alarm sounds. 01453_ ALERT: Alarm triggered, dispatching investigation squad. 01457_ M-13 Machinist repairs A-02 Transporter. 01459_ Processing Tank disabled. 01463_ Ion Engine destroyed. 01465_ U-05 Engineer lays Concrete. 01465_ Exp. Sensor Array destroyed. 01466_ U-05 Engineer lays Concrete. 01466_ Destroyed Heat Sink. 01467_ U-05 Engineer lays Concrete. 01468_ M-13 Machinist repairs S-10 Pest. 01468_ Critical hit (Burn: +37). Map ----- +----------------------------------------------------+ | | | | | ?????????????????????????????????????????????????? | | ?????????????????????????????????????????????????? | | ?????????????????????????????????????????????????? | | ?????????????????????????????????????????????????? | | ?????????????????????????????????????????????????? | | ????????????????????????????????# ???????????????? | | ???????????????????????????????? ???????????????? | | ??????????????????????????####### #####??????????? | | ??????????????????????? #??????????? | | ????????